bitfinex-derivatives/quotes_SOLF0:USTF0_20240927
["timestamp","ask_amount","ask_price","bid_price","bid_amount"]
[1727456469745,9.65,159.29,159.24,9.65]
[1727456469937,9.65,159.29,159.25,9.65]
[1727456470134,12.7882,159.29,159.26,3.1386]
[1727456470337,3.13108727,159.28,159.26,3.1386]
[1727456470536,3.13108727,159.28,159.25,9.65]
[1727456470741,3.13108727,159.28,159.26,3.1387]
[1727456470944,3.13108727,159.28,159.25,9.65]
[1727456471239,3.13108727,159.28,159.26,3.1385]
[1727456471441,9.65,159.27,159.23,1.2678]
[1727456471636,9.65,159.26,159.21,9.65]
[1727456471842,9.65,159.28,159.24,9.65]
[1727456472033,12.7882,159.29,159.25,9.65]
[1727456472234,1.3777,159.31,159.17,3.865]
[1727456472235,9.65,159.26,159.17,3.865]
[1727456472436,9.65,159.21,159.17,3.865]
[1727456472637,2.6267,159.31,159.2,9.65]
[1727456472837,5.77019343,159.31,159.24,3.139]
[1727456473043,9.65,159.26,159.24,3.139]
[1727456473246,9.65,159.27,159.26,3.1387]
[1727456473435,9.65,159.27,159.23,9.65]
[1727456474046,3.1382,159.29,159.24,9.65]
[1727456474047,9.65,159.29,159.24,9.65]
[1727456474248,9.65,159.3,159.25,9.65]
[1727456474549,9.65,159.29,159.24,9.65]
[1727456474746,9.65,159.29,159.26,3.1385]
[1727456475547,1.3168,159.32,159.27,9.65]
[1727456475750,10.9668,159.32,159.27,9.65]
[1727456476248,10.9668,159.32,159.29,3.138]
[1727456476249,9.65,159.31,159.29,3.138]
[1727456476550,4.4517346,159.32,159.24,15.07]
[1727456476753,3.1379,159.31,159.27,3.1384]
[1727456477053,3.1379,159.31,159.24,15.07]
[1727456478158,3.1379,159.31,159.28,3.1382]
[1727456478354,4.4517346,159.32,159.28,3.1382]
[1727456478553,4.4517346,159.32,159.24,15.07]
[1727456478748,1.3688,159.35,159.26,15.07]
[1727456479056,67.8,159.36,159.28,15.07]
[1727456479260,70.96299792,159.36,159.28,15.07]
[1727456479458,70.96299792,159.36,159.3,15.07]
[1727456480451,74.09969792,159.36,159.3,15.07]
[1727456480960,74.09969792,159.36,159.33,3.1372]
[1727456481151,74.09969792,159.36,159.3,15.07]
[1727456481152,70.96299792,159.36,159.3,15.07]
[1727456481349,3.16299792,159.36,159.3,15.07]
[1727456481545,3.1366,159.37,159.34,3.1369]
[1727456482047,6.23393959,159.37,159.34,3.1369]
[1727456483647,3.1367,159.36,159.33,3.1373]
[1727456483960,3.09733959,159.37,159.28,1.2995]
[1727456484256,15.07,159.38,159.28,1.2995]
[1727456484556,3.137,159.35,159.32,3.1374]
[1727456484766,18.19359165,159.38,159.28,1.2995]
[1727456484965,3.1367,159.36,159.33,3.1372]
[1727456485166,18.19359165,159.38,159.28,1.2995]
[1727456485670,3.137,159.35,159.32,3.1374]
[1727456486665,3.1368,159.36,159.33,3.1373]
[1727456488972,3.1371,159.35,159.31,3.1377]
[1727456489272,3.1371,159.35,159.29,15.07]
[1727456489465,3.1371,159.35,159.32,3.1374]
[1727456490068,3.1371,159.35,159.33,3.1373]
[1727456491273,3.1371,159.35,159.32,3.1374]
[1727456491572,18.19359165,159.38,159.29,15.07]
[1727456491766,18.19359165,159.38,159.28,1.2995]
[1727456492165,15.07,159.36,159.3,3.1378]
[1727456492370,15.07,159.34,159.27,1.3398]
[1727456492766,3.1378,159.31,159.28,3.1382]
[1727456493373,3.1378,159.31,159.29,3.1381]
[1727456495271,3.1376,159.32,159.29,3.1381]
[1727456496974,3.1377,159.31,159.29,3.1381]
[1727456497173,3.1377,159.31,159.28,3.1382]
[1727456497972,3.1377,159.31,159.29,3.1381]
[1727456498169,15.07,159.31,159.23,15.07]
[1727456498375,9.64,159.28,159.25,9.64]
[1727456498577,12.82623448,159.28,159.25,9.64]
[1727456498880,3.18623448,159.28,159.25,9.64]
[1727456499179,9.64,159.29,159.27,3.1385]
[1727456499380,12.7781,159.29,159.27,3.1385]
[1727456499572,9.64,159.28,159.23,3.1392]
[1727456499767,9.64,159.26,159.23,3.1392]
[1727456499972,12.77819133,159.26,159.23,3.1392]
[1727456500374,15.91699133,159.26,159.23,3.1392]
[1727456501577,3.1389,159.25,159.23,3.1392]
[1727456501777,12.77819133,159.26,159.24,3.139]
[1727456501979,12.77819133,159.26,159.22,9.64]
[1727456502368,3.13819133,159.26,159.2,15.07]
[1727456502579,3.1383,159.28,159.25,3.1388]
[1727456503170,6.22113759,159.28,159.25,3.1388]
[1727456504176,3.08283759,159.28,159.22,15.07]
[1727456504382,15.07,159.31,159.22,15.07]
[1727456504875,15.07,159.31,159.27,3.1384]
[1727456505381,3.1381,159.29,159.27,3.1384]
[1727456505575,6.27087786,159.29,159.27,3.1384]
[1727456506379,3.13277786,159.29,159.28,3.1383]
[1727456506575,67.8,159.32,159.28,3.1383]
[1727456507076,3.1378,159.31,159.28,3.1383]
[1727456507682,3.1379,159.3,159.28,3.1383]
[1727456507978,67.8,159.32,159.26,15.07]
[1727456508382,1.3509,159.34,159.26,15.07]
[1727456508686,1.3509,159.34,159.3,3.1377]
[1727456508884,3.1374,159.33,159.26,15.07]
[1727456509486,3.137,159.35,159.28,15.07]
[1727456509675,15.07,159.37,159.28,15.07]
[1727456509880,2.6753,159.39,159.3,15.07]
[1727456509881,16.4305,159.39,159.3,15.07]
[1727456510080,67.82,159.4,159.32,15.07]
[1727456510284,82.89,159.4,159.32,15.07]
[1727456510774,86.10568326,159.4,159.32,15.07]
[1727456511287,3.1365,159.38,159.34,3.1369]
[1727456511890,3.1365,159.38,159.35,3.1369]
[1727456512486,3.1365,159.37,159.34,3.137]
[1727456512687,86.10568326,159.4,159.31,1.3801]
[1727456512981,3.1364,159.38,159.35,3.1368]
[1727456513289,86.10568326,159.4,159.31,1.3801]
[1727456513683,86.10568326,159.4,159.33,3.1372]
[1727456513989,15.07,159.38,159.31,1.3801]
[1727456514196,15.07,159.36,159.31,1.3801]
[1727456514390,15.07,159.36,159.29,1.3848]
[1727456514683,3.137,159.35,159.32,3.1375]
[1727456515289,3.1371,159.34,159.31,3.1376]
[1727456515891,15.07,159.34,159.26,15.07]
[1727456516189,15.07,159.34,159.25,2.7119]
[1727456516578,3.1377,159.31,159.28,3.1381]
[1727456516781,3.10239447,159.3,159.28,3.1381]
[1727456516987,3.10239447,159.3,159.25,2.7119]
[1727456517389,3.10239447,159.3,159.29,3.1381]
[1727456517581,3.1376,159.32,159.29,3.1381]
[1727456518186,6.20074353,159.32,159.29,3.1381]
[1727456520596,3.06314353,159.32,159.28,3.1382]
[1727456520791,15.07,159.34,159.28,3.1382]
[1727456521592,3.1378,159.31,159.28,3.1382]
[1727456521790,3.16487939,159.31,159.28,3.1382]
[1727456521994,3.1378,159.31,159.28,3.1382]
[1727456522186,6.2433379,159.31,159.28,3.1382]
[1727456522382,3.1055379,159.31,159.21,1.3324]
[1727456522589,3.138,159.3,159.22,16.337]
[1727456523095,3.1372,159.34,159.24,15.07]
[1727456523490,3.1372,159.34,159.31,3.1376]
[1727456524092,3.1371,159.34,159.31,3.1376]
[1727456524289,9.65,159.33,159.31,3.1376]
[1727456524484,3.13964457,159.32,159.31,3.1376]
[1727456526095,9.65,159.34,159.31,3.1376]
[1727456526299,9.65,159.35,159.32,3.1375]
[1727456526788,9.65,159.34,159.31,3.1376]
[1727456527492,12.7872,159.34,159.31,3.1376]
[1727456528196,12.7872,159.34,159.32,3.1375]
[1727456529093,4.55478326,159.4,159.32,9.65]
[1727456529094,3.21568326,159.4,159.32,9.65]
[1727456529296,6.2708,159.43,159.33,9.65]
[1727456529497,9.65,159.38,159.35,9.65]
[1727456529798,3.07976069,159.37,159.36,3.1367]
[1727456530593,3.1366,159.37,159.28,3.8724]
[1727456530790,15.88393959,159.37,159.32,9.65]
[1727456531193,12.74733959,159.37,159.33,9.65]
[1727456531399,3.09733959,159.37,159.33,9.65]
[1727456531591,9.65,159.39,159.35,9.65]
[1727456531900,3.1364,159.38,159.35,9.65]
[1727456532098,12.82801419,159.39,159.35,9.65]
[1727456532497,3.17801419,159.39,159.32,15.07]
[1727456532698,15.07,159.41,159.35,3.1368]
[1727456532889,18.26507283,159.41,159.32,15.07]
[1727456533097,15.07,159.39,159.3,15.07]
[1727456533411,3.137,159.35,159.32,3.1374]
[1727456533606,3.137,159.35,159.3,15.07]
[1727456533900,3.07078513,159.34,159.33,3.1373]
[1727456534097,15.07,159.39,159.33,3.1373]
[1727456534405,3.1367,159.36,159.33,3.1373]
[1727456534699,3.1367,159.36,159.28,3.8724]
[1727456534700,15.07,159.37,159.32,3.1374]
[1727456534900,3.137,159.35,159.28,18.9424]
[1727456535898,3.137,159.35,159.33,3.1373]
[1727456536099,3.137,159.35,159.28,18.9424]
[1727456536507,3.137,159.35,159.32,3.1373]
[1727456537113,3.137,159.35,159.33,3.1373]
[1727456538906,3.137,159.35,159.32,3.1374]
[1727456540811,15.07,159.35,159.28,3.8724]
[1727456541111,15.07,159.35,159.28,2.5614]
[1727456541307,15.07,159.35,159.3,3.1378]
[1727456542801,3.1368,159.36,159.28,17.6314]
[1727456543008,1.2856,159.38,159.32,15.07]
[1727456543205,3.18848182,159.39,159.32,15.07]
[1727456543411,3.1362,159.39,159.36,3.1366]
[1727456543612,3.209464,159.39,159.32,15.07]
[1727456543913,3.1363,159.38,159.35,3.1368]
[1727456544107,6.32441363,159.38,159.32,15.07]
[1727456544304,3.1363,159.38,159.32,15.07]
[1727456544511,15.07,159.41,159.34,3.137]
[1727456544512,3.1366,159.37,159.34,3.137]
[1727456544809,3.08010584,159.36,159.34,3.137]
[1727456545208,15.07,159.39,159.3,15.07]
[1727456545411,15.07,159.37,159.3,15.07]
[1727456546316,3.137,159.35,159.32,3.1375]
[1727456549218,15.07,159.37,159.28,17.6314]
[1727456549408,15.07,159.37,159.28,2.5614]
[1727456549908,3.1375,159.33,159.3,3.1378]
[1727456551414,3.1375,159.33,159.31,3.1377]
[1727456551611,3.10275538,159.37,159.28,17.6314]
[1727456551923,16.3586,159.4,159.34,3.1371]
[1727456552419,3.1368,159.36,159.34,3.1371]
[1727456554511,3.1366,159.37,159.34,3.1371]
[1727456554711,15.07,159.39,159.34,3.1371]
[1727456555520,15.07,159.39,159.33,3.1373]
[1727456556219,3.137,159.35,159.32,3.1374]
[1727456556421,15.07,159.38,159.3,15.07]
[1727456556919,3.1368,159.36,159.33,3.1372]
[1727456557322,15.07,159.38,159.33,3.1372]
[1727456558118,15.07,159.38,159.28,2.5614]
[1727456558119,15.07,159.38,159.28,17.6314]
[1727456558315,15.07,159.38,159.3,15.07]
[1727456558520,19.51483875,159.4,159.3,15.07]
[1727456559313,3.1367,159.36,159.33,3.1373]
[1727456560016,19.51483875,159.4,159.28,17.6314]
[1727456560216,15.07,159.37,159.28,17.6314]
[1727456561311,3.1375,159.33,159.3,3.1378]
[1727456561615,3.1375,159.33,159.28,2.5614]
[1727456561616,15.07,159.35,159.28,1.2687]
[1727456561811,3.1378,159.31,159.28,4.4069]
[1727456562021,3.1378,159.31,159.28,3.1382]
[1727456562022,3.19231411,159.3,159.28,3.1382]
[1727456563315,15.07,159.33,159.27,56.56633604]
[1727456563812,3.138,159.3,159.27,56.56633604]
[1727456564012,3.15683349,159.29,159.27,56.56633604]
[1727456564220,3.15683349,159.29,159.28,3.1383]
[1727456565418,3.1381,159.29,159.27,56.56643604]
[1727456565620,3.10635768,159.28,159.27,56.56643604]
[1727456566023,3.1379,159.31,159.28,3.1382]
[1727456566319,3.19208712,159.31,159.28,3.1382]
[1727456566524,15.07,159.33,159.28,3.1382]
[1727456566724,3.1379,159.31,159.28,3.1382]
[1727456566926,6.25524863,159.31,159.28,3.1382]
[1727456567620,3.1379,159.3,159.28,3.1382]
[1727456567829,15.07,159.33,159.27,3.1385]
[1727456568217,3.1383,159.29,159.24,15.07]
[1727456568417,3.1383,159.29,159.23,1.3764]
[1727456568418,15.88517014,159.29,159.26,3.1386]
[1727456568925,15.88517014,159.29,159.27,3.1385]
[1727456569820,3.10687014,159.29,159.28,3.1383]
[1727456570024,9.64,159.32,159.28,3.1383]
[1727456570720,12.72771519,159.32,159.28,3.1383]
[1727456570926,3.1378,159.31,159.28,3.1383]
[1727456571420,3.1379,159.3,159.28,3.1383]
[1727456571621,12.7779,159.3,159.28,3.1383]
[1727456571918,12.7779,159.3,159.27,3.1384]
[1727456572125,3.1382,159.29,159.27,3.1384]
[1727456572325,3.1382,159.29,159.26,3.1386]
[1727456573727,3.1382,159.29,159.27,3.1384]
[1727456575624,3.1379,159.3,159.23,17.6954]
[1727456576231,3.1379,159.3,159.27,3.1383]
[1727456576820,3.08771519,159.32,159.25,15.07]
[1727456577026,1.2909,159.36,159.27,15.07]
[1727456577825,3.1374,159.33,159.3,3.1377]
[1727456578026,3.168566,159.32,159.3,3.1377]
[1727456578331,3.168566,159.32,159.31,3.1377]
[1727456578530,3.1372,159.34,159.27,15.07]
[1727456578834,1.2909,159.36,159.32,3.1374]
[1727456579327,67.8,159.37,159.29,15.07]
[1727456579530,67.8,159.37,159.31,15.07]
[1727456579732,67.8,159.37,159.33,15.07]
[1727456579928,3.15623875,159.4,159.33,15.07]
[1727456580126,16.3301,159.43,159.33,15.07]
[1727456580329,3.1362,159.39,159.33,15.07]
[1727456580535,3.1362,159.39,159.29,2.6769]
[1727456580536,3.17767108,159.39,159.35,15.07]
[1727456580736,15.07,159.43,159.35,15.07]
[1727456580934,15.07,159.43,159.36,1.2583]
[1727456581533,3.1358,159.41,159.38,3.1362]
[1727456581734,3.10378325,159.41,159.36,1.2583]
[1727456581931,15.07,159.43,159.36,1.2583]
[1727456582827,15.07,159.43,159.38,3.1363]
[1727456583135,15.07,159.43,159.36,1.2583]
[1727456583337,3.1358,159.41,159.37,3.1364]
[1727456583632,3.07522757,159.41,159.37,3.1364]
[1727456583839,67.82,159.45,159.37,15.07]
[1727456584439,3.1357,159.42,159.39,3.1361]
[1727456584937,3.1358,159.41,159.38,3.1362]
[1727456585140,6.31270231,159.41,159.38,3.1362]
[1727456585832,3.17690231,159.41,159.36,1.2583]
[1727456586043,15.07,159.4,159.31,15.07]
[1727456586447,3.1366,159.37,159.34,3.137]
[1727456586649,3.11507778,159.36,159.34,3.137]
[1727456587145,15.07,159.38,159.3,1.2544]
[1727456587650,3.1368,159.36,159.33,3.1373]
[1727456589439,15.07,159.38,159.33,3.1373]
[1727456589440,3.1369,159.35,159.33,3.1373]
[1727456591542,3.1368,159.36,159.33,3.1373]
[1727456591744,18.14961497,159.4,159.34,3.137]
[1727456591940,15.07,159.4,159.3,16.3244]
[1727456592150,3.1366,159.37,159.34,3.1369]
[1727456592344,3.18763162,159.36,159.3,16.3244]
[1727456592850,3.18763162,159.36,159.34,3.1369]
[1727456593053,3.1369,159.36,159.3,16.3244]
[1727456593553,3.11668374,159.35,159.34,3.1371]
[1727456593750,3.1366,159.37,159.34,3.1371]
[1727456594051,6.26364339,159.37,159.34,3.1371]
[1727456594439,3.12704339,159.37,159.3,16.3244]
[1727456594743,15.07,159.44,159.34,15.07]
[1727456594949,3.1356,159.42,159.34,15.07]
[1727456595143,3.1356,159.42,159.35,2.7219]
[1727456595543,3.1356,159.42,159.39,3.136]
[1727456595946,3.1358,159.41,159.39,3.136]
[1727456596154,6.23628244,159.41,159.39,3.136]
[1727456597355,6.23628244,159.41,159.38,3.1362]
[1727456602259,6.23628244,159.41,159.38,12.7762]
[1727456603757,3.1359,159.4,159.38,12.7762]
[1727456604064,69.0836,159.48,159.39,3.136]
[1727456604357,3.136,159.4,159.38,9.64]
[1727456604553,3.18286053,159.39,159.38,9.64]
[1727456604752,9.64,159.43,159.38,9.64]
[1727456604953,3.136,159.4,159.38,9.64]
[1727456605157,3.19227449,159.39,159.38,12.7763]
[1727456605457,3.19227449,159.39,159.38,3.1363]
[1727456605661,3.19227449,159.39,159.37,9.64]
[1727456605862,3.19227449,159.39,159.37,12.7765]
[1727456606755,3.19227449,159.39,159.37,9.64]
[1727456606956,9.64,159.42,159.37,9.64]
[1727456608261,3.1361,159.4,159.37,9.64]
[1727456608561,6.2681246,159.4,159.37,9.64]
[1727456608860,6.2681246,159.4,159.37,12.7765]
[1727456611064,3.1362,159.39,159.37,12.7765]
[1727456611562,3.1320246,159.4,159.37,12.7765]
[1727456611761,9.64,159.39,159.36,1.3132]
[1727456612063,9.64,159.37,159.32,9.64]
[1727456612258,9.64,159.34,159.3,12.7778]
[1727456612965,3.19216656,159.37,159.3,12.7778]
[1727456612966,9.64,159.33,159.3,3.1378]
[1727456613765,15.87281144,159.33,159.3,3.1378]
[1727456614363,3.1376,159.32,159.3,3.1378]
[1727456614762,3.1376,159.32,159.29,9.64]
[1727456614763,3.1376,159.32,159.29,12.778]
[1727456614965,9.64,159.32,159.28,9.64]
[1727456615168,9.64,159.32,159.27,2.5954]
[1727456615169,9.64,159.31,159.27,1.319]
[1727456615364,9.64,159.31,159.27,10.959]
[1727456615773,15.95547108,159.31,159.28,3.1383]
[1727456619177,6.31547108,159.31,159.28,3.1383]
[1727456619476,6.31547108,159.31,159.29,3.1381]
[1727456620179,3.1379,159.3,159.28,3.1383]
[1727456620378,3.1379,159.3,159.27,1.319]
[1727456620574,9.64,159.3,159.27,1.319]
[1727456620870,9.64,159.3,159.26,9.64]
[1727456621071,67.78,159.37,159.29,9.64]
[1727456621270,67.78,159.37,159.31,12.7775]
[1727456621271,9.64,159.35,159.31,12.7775]
[1727456621470,9.64,159.35,159.31,9.64]
[1727456621673,9.64,159.35,159.3,9.64]
[1727456621870,9.64,159.34,159.3,3.1378]
[1727456622073,9.64,159.32,159.24,53.43810257]
[1727456622280,70.86512405,159.37,159.28,3.1382]
[1727456622281,3.138,159.3,159.28,3.1382]
[1727456622476,3.138,159.3,159.26,9.64]
[1727456622774,3.1384,159.28,159.25,3.1388]
[1727456622976,9.64,159.29,159.25,3.1388]
[1727456623171,3.08488359,159.29,159.25,3.1388]
[1727456623370,3.1385,159.28,159.25,3.1388]
[1727456623668,3.1385,159.28,159.25,12.7788]
[1727456625172,3.1385,159.28,159.13,9.4234]
[1727456625173,9.64,159.26,159.12,6.2827]
[1727456625379,9.64,159.25,159.2,9.64]
[1727456625580,15.97903883,159.25,159.22,3.1394]
[1727456625877,15.97903883,159.25,159.22,9.64]
[1727456626276,3.20013883,159.25,159.23,3.1392]
[1727456626578,9.64,159.25,159.17,1.3159]
[1727456626778,15.86761131,159.25,159.21,12.7795]
[1727456627279,12.72861131,159.25,159.21,9.64]
[1727456627482,9.64,159.24,159.2,9.64]
[1727456627872,9.64,159.23,159.21,3.1396]
[1727456628379,9.64,159.23,159.17,1.3101]
[1727456628577,9.64,159.23,159.18,9.64]
[1727456628778,9.64,159.22,159.17,1.3101]
[1727456629080,9.64,159.2,159.17,1.3101]
[1727456629383,12.78,159.2,159.17,4.4504]
[1727456631585,9.64,159.19,159.17,4.4504]
[1727456631882,9.64,159.19,159.18,3.1403]
[1727456634377,3.1398,159.21,159.18,3.1403]
[1727456634584,9.64,159.21,159.19,3.1399]
[1727456634881,12.7797,159.21,159.17,10.9501]
[1727456635282,9.64,159.21,159.18,3.1401]
[1727456635472,9.64,159.19,159.18,3.1401]
[1727456635877,9.64,159.19,159.17,3.1404]
[1727456636672,3.13984971,159.18,159.17,3.1404]
[1727456637773,3.1403,159.18,159.09,3.8534]
[1727456637980,12.78738988,159.18,159.14,9.64]
[1727456638581,12.78738988,159.18,159.16,3.1406]
[1727456641187,12.78738988,159.18,159.09,3.8534]
[1727456641188,15.92778988,159.18,159.15,3.1408]
[1727456641983,6.28778988,159.18,159.16,3.1406]
[1727456642199,15.92778988,159.18,159.16,3.1406]
[1727456642385,3.14738988,159.18,159.16,9.64]
[1727456642586,9.64,159.2,159.17,3.1405]
[1727456642787,9.64,159.18,159.1,6.2834]
[1727456642989,9.64,159.18,159.12,9.64]
[1727456643287,9.64,159.18,159.15,3.1407]
[1727456643594,15.88922317,159.18,159.15,3.1407]
[1727456644096,3.10882317,159.18,159.14,9.64]
[1727456644280,3.1402,159.19,159.14,9.64]
[1727456644486,12.7802,159.19,159.14,9.64]
[1727456644887,15.96317743,159.19,159.14,9.64]
[1727456645187,67.84,159.24,159.17,9.64]
[1727456645391,9.64,159.22,159.17,9.64]
[1727456645888,12.7796,159.22,159.19,3.1399]
[1727456646087,70.9956409,159.24,159.2,9.64]
[1727456646284,9.64,159.27,159.22,9.64]
[1727456646490,12.7786,159.27,159.24,3.1389]
[1727456647082,9.64,159.27,159.23,9.64]
[1727456647389,1.3355,159.28,159.23,9.64]
[1727456647591,9.64,159.29,159.23,9.64]
[1727456648093,9.64,159.29,159.17,4.0182]
[1727456648094,3.1382,159.29,159.25,9.64]
[1727456649086,12.778,159.3,159.25,9.64]
[1727456649292,9.64,159.3,159.25,9.64]
[1727456650789,3.1381,159.29,159.25,9.64]
[1727456651191,9.64,159.3,159.25,9.64]
[1727456651682,12.778,159.3,159.26,9.64]
[1727456651994,12.778,159.3,159.27,3.1385]
[1727456653091,3.138,159.3,159.27,3.1385]
[1727456654791,9.64,159.28,159.17,10.2991]
[1727456654985,9.64,159.25,159.2,9.64]
[1727456655192,12.80041893,159.25,159.2,9.64]
[1727456655701,15.93941893,159.25,159.22,3.1395]
[1727456655897,3.16041893,159.25,159.23,9.64]
[1727456656097,9.64,159.27,159.23,9.64]
[1727456656401,3.11958665,159.26,159.23,9.64]
[1727456656603,9.64,159.27,159.23,9.64]
[1727456656896,12.7786,159.27,159.24,3.139]
[1727456657611,3.07624161,159.26,159.25,3.1387]
[1727456657808,3.1383,159.28,159.25,3.1387]
[1727456658007,9.64,159.27,159.25,3.1387]
[1727456658209,12.7786,159.27,159.24,3.139]
[1727456658413,9.64,159.27,159.24,3.139]
[1727456659112,9.64,159.26,159.23,3.1392]
[1727456659311,12.81592767,159.26,159.2,9.64]
[1727456659509,3.1393,159.23,159.21,3.1395]
[1727456659806,9.64,159.24,159.2,9.64]
[1727456660006,12.7820042,159.24,159.2,9.64]
[1727456660218,15.9212042,159.24,159.21,3.1396]
[1727456660511,15.9212042,159.24,159.2,9.64]
[1727456661604,15.9212042,159.24,159.21,3.1396]
[1727456662612,9.64,159.22,159.17,2.7361]
[1727456663014,9.64,159.22,159.18,9.64]
[1727456663610,12.7796,159.22,159.19,3.14]
[1727456667416,3.1397,159.21,159.19,3.14]
[1727456669006,12.7799,159.2,159.18,3.1403]
[1727456669213,9.64,159.19,159.13,2.5241]
[1727456669406,3.18017821,159.18,159.14,9.64]
[1727456670116,3.18017821,159.18,159.17,3.1403]
[1727456672217,12.78,159.2,159.18,3.1402]
[1727456672620,15.98362693,159.2,159.18,3.1402]
[1727456672919,12.84362693,159.2,159.16,9.64]
[1727456673813,15.98362693,159.2,159.18,3.1401]
[1727456676322,12.84362693,159.2,159.19,3.1401]
[1727456676519,6.2752,159.32,159.13,2.5241]
[1727456676822,9.64,159.24,159.19,9.64]
[1727456677821,9.64,159.24,159.22,3.1393]
[1727456678716,12.7792,159.24,159.22,3.1393]
[1727456679018,3.1392,159.24,159.22,3.1393]
[1727456679526,15.84376225,159.25,159.22,3.1393]
[1727456679723,12.70476225,159.25,159.2,9.64]
[1727456679924,3.06476225,159.25,159.23,9.64]
[1727456680125,12.7784,159.28,159.23,9.64]
[1727456680318,9.64,159.28,159.25,3.1388]
[1727456680519,9.64,159.27,159.23,9.64]
[1727456680923,12.7786,159.27,159.24,3.139]
[1727456681127,9.64,159.26,159.21,9.64]
[1727456681425,9.64,159.26,159.23,3.1392]
[1727456681933,12.82386633,159.26,159.23,3.1392]
[1727456682630,9.64,159.25,159.23,3.1392]
[1727456682929,12.7789,159.25,159.23,3.1392]
[1727456683329,3.20177263,159.24,159.23,3.1392]
[1727456683524,3.20177263,159.24,159.22,3.1394]
[1727456683828,12.786483,159.23,159.22,3.1394]
[1727456684923,3.146483,159.23,159.22,3.1394]
[1727456686323,12.7793,159.23,159.19,1.2661]
[1727456686528,9.64,159.22,159.19,1.2661]
[1727456686720,3.11361885,159.23,159.21,9.64]
[1727456686921,3.1392,159.24,159.21,9.64]
[1727456687231,15.8846524,159.24,159.2,9.64]
[1727456687928,15.8846524,159.24,159.21,3.1396]
[1727456689132,3.1054524,159.24,159.21,9.64]
[1727456689319,9.64,159.26,159.21,9.64]
[1727456689523,12.74427205,159.26,159.21,9.64]
[1727456689926,3.10427205,159.26,159.23,9.64]
[1727456690124,9.64,159.27,159.23,9.64]
[1727456690540,3.1387,159.26,159.24,3.139]
[1727456690832,3.08353921,159.25,159.24,3.139]
[1727456691132,12.7787,159.26,159.23,3.1391]
[1727456691631,15.88941223,159.26,159.23,3.1391]
[1727456692029,15.88941223,159.26,159.24,3.1391]
[1727456694033,12.75071223,159.26,159.24,3.1391]
[1727456694233,3.11071223,159.26,159.24,3.1391]
[1727456694432,12.7785,159.27,159.24,3.1391]
[1727456694934,3.07553455,159.26,159.25,3.1388]
[1727456695238,12.7783,159.28,159.23,9.64]
[1727456695426,12.7783,159.28,159.24,9.64]
[1727456695626,160.26012489,159.33,159.27,9.64]
[1727456696024,9.64,159.3,159.25,9.64]
[1727456696335,12.778,159.3,159.27,3.1383]
[1727456696531,12.778,159.3,159.25,9.64]
[1727456697034,12.778,159.3,159.27,3.1383]
[1727456698434,12.778,159.3,159.25,9.64]
[1727456699435,9.64,159.28,159.2,1.2926]
[1727456699629,9.64,159.24,159.2,10.9326]
[1727456700637,9.64,159.23,159.19,1.2661]